[Event "2nd Irena Warakomska Memorial-A"]
[Site "Suwalki"]
[Date "2018.08.06"]
[Round "7"]
[White "Praczukowski, Stanislaw"]
[Black "Paprocki, Jaroslaw"]
[Result "1/2-1/2"]
[ECO "C44"]
[WhiteElo "2136"]
[BlackElo "2143"]
[Annotator "NA"]
[PlyCount "123"]
[EventDate "2018.08.01"]
[EventType "swiss"]
[EventCountry "POL"]
[SourceTitle "playchess.com"]
[Source "ChessBase"]
[SourceQuality "1"]
[TimeControl "40/5400+30:1800+30"]

1. e4 {[%emt 0:00:00]} e5 {[%emt 0:00:00]} 2. Nf3 {[%emt 0:00:00]} Nc6 {[%emt 0:00:00]} 3. d4 {[%emt 0:00:00]} exd4 {[%emt 0:00:00]} 4. Nxd4 {[%emt 0:00:00]} Bb4+ {[%emt 0:00:02]} 5. c3 {[%emt 0:00:20]} Bc5 {[%emt 0:00:04]} 6. Nxc6 {[%emt 0:00:11]} bxc6 {[%emt 0:05:44]} 7. Bd3 {[%emt 0:00:14]} Qh4 {[%emt 0:04:36]} 8. Qe2 {[%emt 0:01:34]} d6 {[%emt 0:05:16]} 9. Be3 {[%emt 0:12:08]} Bxe3 {[%emt 0:00:04]} 10. Qxe3 {[%emt 0:00:12]} Nf6 {[%emt 0:03:04]} 11. O-O {[%emt 0:09:52]} O-O {[%emt 0:02:54]} 12. Nd2 {[%emt 0:00:39]} Re8 {[%emt 0:07:16]} 13. Qg3 {[%emt 0:06:06]} Qxg3 {[%emt 0:06:03]} 14. hxg3 {[%emt 0:00:23]} Bg4 {[%emt 0:08:02]} 15. f3 {[%emt 0:00:54]} Be6 {[%emt 0:03:14]} 16. g4 {[%emt 0:11:33]} h6 {[%emt 0:07:08]} 17. Kf2 {[%emt 0:03:16]} Nd7 {[%emt 0:00:41]} 18. Rfb1 {[%emt 0:07:18]} Ne5 {[%emt 0:01:07]} 19. Be2 {[%emt 0:01:27]} c5 {[%emt 0:06:34]} 20. Kg3 {[%emt 0:05:30]} g5 {[%emt 0:06:55]} 21. b4 {[%emt 0:03:07]} cxb4 {[%emt 0:08:47]} 22. cxb4 {[%emt 0:01:52]} c5 {[%emt 0:03:35]} 23. bxc5 {[%emt 0:02:47]} dxc5 {[%emt 0:00:05]} 24. Rb5 {[%emt 0:01:41]} Rac8 {[%emt 0:06:30]} 25. Nb3 {[%emt 0:02:49]} Nc6 {[%emt 0:08:00]} 26. Rxc5 {[%emt 0:13:54]} Nd4 {[%emt 0:01:05]} 27. Bd1 {[%emt 0:01:26]} Bxb3 {[%emt 0:01:44]} 28. Rxc8 {[%emt 0:00:10]} Rxc8 {[%emt 0:00:01]} 29. Bxb3 {[%emt 0:04:01]} Nxb3 {[%emt 0:00:43]} 30. axb3 {[%emt 0:00:09]} Rc3 {[%emt 0:00:27]} 31. Ra3 {[%emt 0:02:03]} a5 {[%emt 0:00:34]} 32. Rxa5 {[%emt 0:00:34]} Rxb3 {[%emt 0:00:10]} 33. Ra2 {[%emt 0:00:21]} Kg7 {[%emt 0:00:22]} 34. Kf2 {[%emt 0:00:10]} Kg6 {[%emt 0:02:26]} 35. Rd2 {[%emt 0:00:08]} Ra3 {[%emt 0:03:10]} 36. Ke2 {[%emt 0:00:07]} f6 {[%emt 0:00:53]} 37. g3 {[%emt 0:00:26]} Rb3 {[%emt 0:00:33]} 38. Kf2 {[%emt 0:00:17]} Rb4 {[%emt 0:00:21]} 39. Re2 {[%emt 0:00:34]} h5 {[%emt 0:00:30]} 40. gxh5+ {[%emt 0:00:00]} Kxh5 {[%emt 0:00:00]} 41. Kg2 {[%emt 0:01:24]} Ra4 {[%emt 0:01:41]} 42. Rb2 {[%emt 0:01:45]} g4 {[%emt 0:02:45]} 43. Rb5+ {[%emt 0:02:44]} Kg6 {[%emt 0:00:16]} 44. Rb2 {[%emt 0:01:47]} Rc4 {[%emt 0:03:51]} 45. Re2 {[%emt 0:01:03]} gxf3+ {[%emt 0:00:42]} 46. Kxf3 {[%emt 0:00:07]} Kg5 {[%emt 0:00:16]} 47. Re3 {[%emt 0:00:13]} Rc5 {[%emt 0:00:39]} 48. Rd3 {[%emt 0:00:13]} Rc1 {[%emt 0:03:09]} 49. Rd5+ {[%emt 0:00:07]} Kg6 {[%emt 0:00:06]} 50. Kf4 {[%emt 0:00:23]} Rf1+ {[%emt 0:00:20]} 51. Kg4 {[%emt 0:00:06]} Re1 {[%emt 0:00:12]} 52. Rd4 {[%emt 0:00:08]} Rxe4+ {[%emt 0:00:57]} 53. Rxe4 {[%emt 0:00:06]} f5+ {[%emt 0:00:03]} 54. Kf4 {[%emt 0:00:04]} fxe4 {[%emt 0:00:04]} 55. Kxe4 {[%emt 0:00:03]} Kg5 {[%emt 0:00:11]} 56. Kf3 {[%emt 0:00:04]} Kf5 {[%emt 0:00:04]} 57. g4+ {[%emt 0:00:02]} Kg5 {[%emt 0:00:03]} 58. Kg3 {[%emt 0:00:03]} Kg6 {[%emt 0:00:05]} 59. g5 {[%emt 0:00:07]} Kf5 {[%emt 0:00:20]} 60. g6 {[%emt 0:00:04]} Kf6 {[%emt 0:00:02]} 61. g7 {[%emt 0:00:03]} Kf7 {[%emt 0:00:02]} 62. g8=B+ {[%emt 0:00:07]} 1/2-1/2

[Event "2nd Irena Warakomska Memorial-A"]
[Site "Suwalki"]
[Date "2018.08.06"]
[Round "7"]
[White "Popiol, Michal"]
[Black "Chylewski, Patryk"]
[Result "0-1"]
[ECO "E15"]
[WhiteElo "2126"]
[BlackElo "2270"]
[Annotator "NA"]
[PlyCount "80"]
[EventDate "2018.08.01"]
[EventType "swiss"]
[EventCountry "POL"]
[SourceTitle "playchess.com"]
[Source "ChessBase"]
[SourceQuality "1"]
[TimeControl "40/5400+30:1800+30"]

1. d4 {[%emt 0:00:00]} Nf6 {[%emt 0:00:00]} 2. c4 {[%emt 0:00:00]} e6 {[%emt 0:00:00]} 3. Nf3 {[%emt 0:00:21]} b6 {[%emt 0:00:12]} 4. g3 {[%emt 0:00:56]} Bb7 {[%emt 0:00:21]} 5. Bg2 {[%emt 0:00:07]} c5 {[%emt 0:00:39]} 6. d5 {[%emt 0:02:32]} exd5 {[%emt 0:00:05]} 7. Nh4 {[%emt 0:01:02]} g6 {[%emt 0:00:41]} 8. Nc3 {[%emt 0:01:39]} Bg7 {[%emt 0:00:32]} 9. O-O {[%emt 0:05:23]} O-O {[%emt 0:00:59]} 10. cxd5 {[%emt 0:00:53]} d6 {[%emt 0:01:24]} 11. a4 {[%emt 0:01:56]} Na6 {[%emt 0:06:08]} 12. Nf3 {[%emt 0:14:36]} Nb4 {[%emt 0:02:31]} 13. Ne1 {[%emt 0:01:43]} a6 {[%emt 0:13:02]} 14. e4 {[%emt 0:05:17]} Nd7 {[%emt 0:05:50]} 15. Nc2 {[%emt 0:05:33]} Nxc2 {[%emt 0:03:12]} 16. Qxc2 {[%emt 0:00:04]} c4 {[%emt 0:00:56]} 17. Be3 {[%emt 0:09:23]} Qc7 {[%emt 0:02:27]} 18. Ne2 {[%emt 0:10:16]} Ne5 {[%emt 0:10:12]} 19. Bd4 {[%emt 0:03:45]} b5 {[%emt 0:05:04]} 20. axb5 {[%emt 0:00:06]} axb5 {[%emt 0:00:05]} 21. Rxa8 {[%emt 0:00:03]} Rxa8 {[%emt 0:02:51]} 22. b4 {[%emt 0:00:03]} Nd3 {[%emt 0:03:41]} 23. Bxg7 {[%emt 0:04:04]} Kxg7 {[%emt 0:01:41]} 24. Qc3+ {[%emt 0:00:04]} Kg8 {[%emt 0:00:28]} 25. Nc1 {[%emt 0:00:18]} Ne5 {[%emt 0:03:22]} 26. Qd4 {[%emt 0:01:37]} Ra4 {[%emt 0:04:29]} 27. f4 {[%emt 0:02:17]} Nd7 {[%emt 0:00:55]} 28. Qc3 {[%emt 0:03:57]} Qb6+ {[%emt 0:08:30]} 29. Kh1 {[%emt 0:00:05]} Qa7 {[%emt 0:00:50]} 30. Ne2 {[%emt 0:00:04]} Ra3 {[%emt 0:03:44]} 31. Qd4 {[%emt 0:00:06]} Qa4 {[%emt 0:04:19]} 32. Bh3 {[%emt 0:01:39]} Qc2 {[%emt 0:04:27]} 33. Bxd7 {[%emt 0:04:04]} Qxe2 {[%emt 0:00:08]} 34. Rf2 {[%emt 0:00:13]} Qe1+ {[%emt 0:01:46]} 35. Kg2 {[%emt 0:00:04]} Rd3 {[%emt 0:00:16]} 36. Qf6 {[%emt 0:03:02]} Qxe4+ {[%emt 0:00:14]} 37. Kh3 {[%emt 0:00:04]} Qd4 {[%emt 0:08:11]} 38. Qxd6 {[%emt 0:14:36]} Qxd5 {[%emt 0:02:47]} 39. Qb8+ {[%emt 0:00:04]} Kg7 {[%emt 0:00:06]} 40. Bc8 {[%emt 0:00:00]} Qh5# {[%emt 0:00:00]} 0-1

[Event "2nd Irena Warakomska Memorial-A"]
[Site "Suwalki"]
[Date "2018.08.06"]
[Round "7"]
[White "Harshini, A."]
[Black "Bykovskiy, Oleg"]
[Result "1/2-1/2"]
[ECO "B06"]
[WhiteElo "2124"]
[BlackElo "2263"]
[Annotator "NA"]
[PlyCount "68"]
[EventDate "2018.08.01"]
[EventType "swiss"]
[EventCountry "POL"]
[SourceTitle "playchess.com"]
[Source "ChessBase"]
[SourceQuality "1"]
[TimeControl "40/5400+30:1800+30"]

1. e4 {[%emt 0:00:00]} g6 {[%emt 0:00:50]} 2. d4 {[%emt 0:00:00]} Bg7 {[%emt 0:00:23]} 3. Nf3 {[%emt 0:00:01]} d5 {[%emt 0:00:25]} 4. exd5 {[%emt 0:00:24]} Qxd5 {[%emt 0:00:06]} 5. Nc3 {[%emt 0:00:05]} Qd8 {[%emt 0:00:05]} 6. Be2 {[%emt 0:00:54]} Bg4 {[%emt 0:02:59]} 7. Be3 {[%emt 0:00:38]} Nf6 {[%emt 0:00:27]} 8. O-O {[%emt 0:00:51]} O-O {[%emt 0:00:07]} 9. Qd2 {[%emt 0:00:49]} e6 {[%emt 0:00:09]} 10. h3 {[%emt 0:00:22]} Bxf3 {[%emt 0:00:08]} 11. Bxf3 {[%emt 0:00:06]} c6 {[%emt 0:00:01]} 12. Ne4 {[%emt 0:05:59]} Nxe4 {[%emt 0:02:36]} 13. Bxe4 {[%emt 0:00:06]} Nd7 {[%emt 0:03:12]} 14. c4 {[%emt 0:03:00]} f5 {[%emt 0:07:32]} 15. Bf3 {[%emt 0:01:30]} e5 {[%emt 0:02:05]} 16. d5 {[%emt 0:02:31]} c5 {[%emt 0:14:25]} 17. Bg5 {[%emt 0:01:06]} Bf6 {[%emt 0:02:12]} 18. Bh6 {[%emt 0:02:23]} Re8 {[%emt 0:02:27]} 19. Bd1 {[%emt 0:05:23]} Nb6 {[%emt 0:03:54]} 20. Rc1 {[%emt 0:00:39]} Qd6 {[%emt 0:00:06]} 21. Bg5 {[%emt 0:00:30]} Bxg5 {[%emt 0:02:02]} 22. Qxg5 {[%emt 0:00:07]} e4 {[%emt 0:00:02]} 23. Re1 {[%emt 0:01:40]} Re5 {[%emt 0:04:50]} 24. Rc3 {[%emt 0:06:52]} Rf8 {[%emt 0:02:20]} 25. Qc1 {[%emt 0:01:30]} Re7 {[%emt 0:01:34]} 26. Rce3 {[%emt 0:03:47]} Nd7 {[%emt 0:01:21]} 27. f3 {[%emt 0:02:13]} Nf6 {[%emt 0:09:16]} 28. fxe4 {[%emt 0:00:52]} fxe4 {[%emt 0:00:10]} 29. Bc2 {[%emt 0:01:10]} Qf4 {[%emt 0:06:07]} 30. R3e2 {[%emt 0:10:26]} e3 {[%emt 0:10:52]} 31. Rxe3 {[%emt 0:02:48]} Ng4 {[%emt 0:04:41]} 32. hxg4 {[%emt 0:00:07]} Qf2+ {[%emt 0:00:05]} 33. Kh2 {[%emt 0:01:02]} Qh4+ {[%emt 0:00:05]} 34. Kg1 {[%emt 0:00:09]} Qf2+ {[%emt 0:00:06]} 1/2-1/2

[Event "2nd Irena Warakomska Memorial-A"]
[Site "Suwalki"]
[Date "2018.08.06"]
[Round "7"]
[White "Kuchava, Ana"]
[Black "Wacior, Maciej"]
[Result "0-1"]
[ECO "D43"]
[WhiteElo "2124"]
[BlackElo "2081"]
[Annotator "NA"]
[PlyCount "88"]
[EventDate "2018.08.01"]
[EventType "swiss"]
[EventCountry "POL"]
[SourceTitle "playchess.com"]
[Source "ChessBase"]
[SourceQuality "1"]
[TimeControl "40/5400+30:1800+30"]

1. d4 {[%emt 0:00:00]} d5 {[%emt 0:00:00]} 2. Nf3 {[%emt 0:00:00]} Nf6 {[%emt 0:00:00]} 3. c4 {[%emt 0:00:15]} e6 {[%emt 0:00:02]} 4. Nc3 {[%emt 0:00:05]} c6 {[%emt 0:00:03]} 5. Qb3 {[%emt 0:00:44]} Bd6 {[%emt 0:02:51]} 6. Bg5 {[%emt 0:00:24]} h6 {[%emt 0:00:11]} 7. Bh4 {[%emt 0:00:10]} Nbd7 {[%emt 0:01:11]} 8. e3 {[%emt 0:00:32]} Qc7 {[%emt 0:01:56]} 9. c5 {[%emt 0:00:40]} Be7 {[%emt 0:00:04]} 10. Bg3 {[%emt 0:00:05]} Qa5 {[%emt 0:00:38]} 11. a3 {[%emt 0:03:31]} b6 {[%emt 0:02:28]} 12. Qb4 {[%emt 0:00:45]} Qxb4 {[%emt 0:00:03]} 13. axb4 {[%emt 0:00:06]} Bb7 {[%emt 0:00:22]} 14. h3 {[%emt 0:01:03]} a5 {[%emt 0:02:17]} 15. bxa5 {[%emt 0:07:20]} bxc5 {[%emt 0:00:41]} 16. dxc5 {[%emt 0:00:51]} Nxc5 {[%emt 0:01:43]} 17. Nd4 {[%emt 0:02:06]} O-O {[%emt 0:05:53]} 18. f3 {[%emt 0:02:23]} Nfd7 {[%emt 0:03:31]} 19. Kf2 {[%emt 0:04:22]} Bf6 {[%emt 0:08:39]} 20. b4 {[%emt 0:05:48]} Nb3 {[%emt 0:16:10]} 21. Rd1 {[%emt 0:05:17]} Nxd4 {[%emt 0:00:03]} 22. exd4 {[%emt 0:00:05]} Be7 {[%emt 0:00:02]} 23. Rb1 {[%emt 0:02:17]} f5 {[%emt 0:00:08]} 24. Bf4 {[%emt 0:02:46]} g5 {[%emt 0:00:29]} 25. Bd2 {[%emt 0:01:29]} Bf6 {[%emt 0:01:14]} 26. Ne2 {[%emt 0:00:10]} Ba6 {[%emt 0:00:12]} 27. Bc3 {[%emt 0:00:28]} Rfb8 {[%emt 0:03:32]} 28. Ng3 {[%emt 0:03:35]} c5 {[%emt 0:01:15]} 29. b5 {[%emt 0:05:27]} cxd4 {[%emt 0:02:37]} 30. Bd2 {[%emt 0:01:25]} Bc8 {[%emt 0:09:59]} 31. Rc1 {[%emt 0:05:09]} Ne5 {[%emt 0:10:40]} 32. b6 {[%emt 0:02:28]} Ba6 {[%emt 0:00:45]} 33. Bxa6 {[%emt 0:00:55]} Rxa6 {[%emt 0:00:01]} 34. Rc7 {[%emt 0:02:59]} Bd8 {[%emt 0:01:07]} 35. Rc2 {[%emt 0:07:12]} Nc4 {[%emt 0:01:35]} 36. Bb4 {[%emt 0:00:16]} Nxa5 {[%emt 0:00:48]} 37. Bxa5 {[%emt 0:06:16]} Rxa5 {[%emt 0:00:08]} 38. Re1 {[%emt 0:00:10]} Bxb6 {[%emt 0:03:16]} 39. Rc6 {[%emt 0:01:14]} d3+ {[%emt 0:02:08]} 40. Kf1 {[%emt 0:00:00]} d2 {[%emt 0:00:00]} 41. Rd1 {[%emt 0:00:21]} Rc5 {[%emt 0:00:46]} 42. Rxe6 {[%emt 0:00:36]} Rc1 {[%emt 0:00:03]} 43. Ke2 {[%emt 0:00:06]} Rxd1 {[%emt 0:00:02]} 44. Kxd1 {[%emt 0:00:08]} Ba5 {[%emt 0:00:01]} 0-1

[Event "2nd Irena Warakomska Memorial-A"]
[Site "Suwalki"]
[Date "2018.08.06"]
[Round "7"]
[White "Sliwerski, Radoslaw"]
[Black "Jaroch, Karol"]
[Result "0-1"]
[ECO "E67"]
[WhiteElo "1990"]
[BlackElo "2222"]
[Annotator "NA"]
[PlyCount "108"]
[EventDate "2018.08.01"]
[EventType "swiss"]
[EventCountry "POL"]
[SourceTitle "playchess.com"]
[Source "ChessBase"]
[SourceQuality "1"]
[TimeControl "40/5400+30:1800+30"]

1. d4 {[%emt 0:00:00]} Nf6 {[%emt 0:00:00]} 2. c4 {[%emt 0:00:00]} g6 {[%emt 0:00:07]} 3. g3 {[%emt 0:00:00]} Bg7 {[%emt 0:00:04]} 4. Bg2 {[%emt 0:00:00]} O-O {[%emt 0:00:08]} 5. Nc3 {[%emt 0:00:00]} d6 {[%emt 0:01:17]} 6. Nf3 {[%emt 0:00:00]} Nbd7 {[%emt 0:00:09]} 7. O-O {[%emt 0:00:00]} c5 8. d5 {[%emt 0:06:56]} a6 {[%emt 0:08:37]} 9. h3 {[%emt 0:05:03]} Ne8 {[%emt 0:09:31]} 10. e4 {[%emt 0:10:04]} Nc7 11. a4 b6 {[%emt 0:12:03]} 12. Bf4 {[%emt 0:10:46]} Rb8 {[%emt 0:00:11]} 13. Qe2 {[%emt 0:05:26]} b5 {[%emt 0:07:17]} 14. cxb5 {[%emt 0:06:27]} axb5 {[%emt 0:00:19]} 15. axb5 {[%emt 0:08:16]} Nb6 {[%emt 0:05:20]} 16. Rfd1 {[%emt 0:10:55]} Bd7 {[%emt 0:01:34]} 17. e5 {[%emt 0:09:21]} Nc8 {[%emt 0:00:32]} 18. Qd2 Re8 19. Bh6 {[%emt 0:10:47]} Bxe5 {[%emt 0:17:57]} 20. Nxe5 {[%emt 0:00:06]} dxe5 {[%emt 0:00:05]} 21. Qe3 {[%emt 0:01:40]} f6 22. Qxc5 {[%emt 0:01:14]} Nxb5 {[%emt 0:00:20]} 23. d6 Ncxd6 {[%emt 0:05:53]} 24. Bd5+ {[%emt 0:11:11]} Kh8 {[%emt 0:00:07]} 25. Bc6 {[%emt 0:02:55]} Qc8 {[%emt 0:04:58]} 26. Nxb5 {[%emt 0:00:26]} Rxb5 {[%emt 0:00:10]} 27. Qxb5 {[%emt 0:00:35]} Nxb5 {[%emt 0:02:04]} 28. Bxd7 {[%emt 0:00:02]} Qb8 {[%emt 0:00:12]} 29. Bxe8 {[%emt 0:00:04]} Qxe8 {[%emt 0:00:04]} 30. Ra5 {[%emt 0:00:29]} Kg8 {[%emt 0:00:07]} 31. Rda1 {[%emt 0:00:16]} Kf7 {[%emt 0:00:12]} 32. Be3 {[%emt 0:01:14]} h5 {[%emt 0:01:27]} 33. Ra8 {[%emt 0:00:36]} Qd7 {[%emt 0:00:06]} 34. Rb8 {[%emt 0:00:28]} h4 {[%emt 0:00:34]} 35. g4 Nd4 {[%emt 0:01:02]} 36. Bxd4 {[%emt 0:01:54]} exd4 {[%emt 0:00:06]} 37. b4 d3 {[%emt 0:00:15]} 38. Rba8 {[%emt 0:00:43]} d2 {[%emt 0:01:09]} 39. Rd1 {[%emt 0:00:18]} Qd3 {[%emt 0:00:22]} 40. Ra2 {[%emt 0:00:00]} Qxh3 {[%emt 0:00:00]} 41. Raxd2 {[%emt 0:01:08]} Qxg4+ {[%emt 0:00:28]} 42. Kh2 {[%emt 0:06:25]} h3 43. f4 {[%emt 0:01:58]} Qxf4+ {[%emt 0:02:15]} 44. Kxh3 {[%emt 0:00:02]} Qxb4 {[%emt 0:00:07]} 45. Rd4 {[%emt 0:00:37]} Qc3+ {[%emt 0:00:16]} 46. R1d3 {[%emt 0:00:11]} Qe1 {[%emt 0:00:08]} 47. Kg2 {[%emt 0:00:23]} g5 {[%emt 0:00:11]} 48. Rf3 {[%emt 0:00:53]} Kg6 {[%emt 0:01:08]} 49. Rd8 {[%emt 0:00:55]} Qe2+ {[%emt 0:00:56]} 50. Kg3 {[%emt 0:00:32]} Qe5+ {[%emt 0:00:18]} 51. Kg2 {[%emt 0:00:10]} Qe6 {[%emt 0:01:51]} 52. Rdd3 {[%emt 0:00:20]} Qc6 {[%emt 0:00:56]} 53. Kg3 {[%emt 0:00:18]} e5 {[%emt 0:00:14]} 54. Rd8 {[%emt 0:00:10]} e4 {[%emt 0:00:30]} 0-1

[Event "2nd Irena Warakomska Memorial-A"]
[Site "Suwalki"]
[Date "2018.08.07"]
[Round "8"]
[White "Ovsejevitsch, Sergei"]
[Black "Shtembuliak, Evgeny"]
[Result "1-0"]
[ECO "B06"]
[WhiteElo "2597"]
[BlackElo "2518"]
[Annotator "ChessBase"]
[PlyCount "53"]
[EventDate "2018.08.01"]
[EventType "swiss"]
[EventCountry "POL"]
[SourceTitle "playchess.com"]
[Source "ChessBase"]
[SourceQuality "1"]
[TimeControl "40/5400+30:1800+30"]

1. d4 {[%emt 0:00:00]} g6 {[%emt 0:00:00]} 2. e4 {[%emt 0:00:16]} Bg7 {[%emt 0:00:00]} 3. c4 {[%emt 0:00:21]} d6 {[%emt 0:00:00]} 4. Nc3 {[%emt 0:01:43]} c5 {[%emt 0:00:00]} 5. d5 {[%emt 0:01:55]} e6 {[%emt 0:00:04]} 6. Nf3 {[%emt 0:10:28]} Ne7 {[%emt 0:00:11]} 7. h3 {[%emt 0:05:58]} O-O {[%emt 0:02:27]} 8. Bd3 {[%emt 0:00:16]} a6 {[%emt 0:01:13]} 9. O-O {[%emt 0:06:34]} h6 {[%emt 0:03:03]} 10. Re1 {[%emt 0:04:31]} Nd7 {[%emt 0:05:51]} 11. a4 {[%emt 0:08:18]} g5 {[%emt 0:04:23]} 12. h4 {[%emt 0:07:53]} g4 {[%emt 0:03:05]} 13. Nh2 {[%emt 0:00:48]} h5 {[%emt 0:00:45]} 14. Bg5 {[%emt 0:03:50]} Ne5 {[%emt 0:03:04]} 15. Nf1 {[%emt 0:02:39]} f6 {[%emt 0:04:27]} 16. Bc1 {[%emt 0:02:50]} exd5 {[%emt 0:33:42]} 17. exd5 {[%emt 0:04:46]} f5 {[%emt 0:01:03]} 18. Bg5 {[%emt 0:02:12]} f4 {[%emt 0:01:02]} 19. Bc2 {[%emt 0:10:03]} Rf7 {[%emt 0:09:29]} 20. Ne4 {[%emt 0:04:55]} Nxc4 {[%emt 0:02:24]} 21. Nxc5 {[%emt 0:06:11]} Nxb2 {[%emt 0:11:55]} 22. Qd2 {[%emt 0:04:31]} Qc7 {[%emt 0:04:48]} 23. Ne6 {[%emt 0:02:24]} Bxe6 {[%emt 0:01:53]} 24. dxe6 {[%emt 0:00:09]} Rff8 {[%emt 0:00:03]} 25. Rac1 {[%emt 0:00:36]} Qd8 {[%emt 0:02:22]} 26. Bb1 {[%emt 0:01:47]} Qe8 {[%emt 0:01:08]} 27. Rc7 {[%emt 0:00:48]} 1-0

[Event "2nd Irena Warakomska Memorial-A"]
[Site "Suwalki"]
[Date "2018.08.07"]
[Round "8"]
[White "Tomczak, Jacek"]
[Black "Leniart, Arkadiusz"]
[Result "1-0"]
[ECO "C81"]
[WhiteElo "2596"]
[BlackElo "2498"]
[Annotator "ChessBase"]
[PlyCount "55"]
[EventDate "2018.08.01"]
[EventType "swiss"]
[EventCountry "POL"]
[SourceTitle "playchess.com"]
[Source "ChessBase"]
[SourceQuality "1"]
[TimeControl "40/5400+30:1800+30"]

1. e4 {[%emt 0:00:00]} e5 {[%emt 0:00:00]} 2. Nf3 {[%emt 0:00:00]} Nc6 {[%emt 0:00:00]} 3. Bb5 {[%emt 0:00:00]} a6 {[%emt 0:00:00]} 4. Ba4 {[%emt 0:00:00]} Nf6 {[%emt 0:00:00]} 5. O-O {[%emt 0:00:14]} Nxe4 {[%emt 0:00:04]} 6. d4 {[%emt 0:00:45]} b5 {[%emt 0:00:09]} 7. Bb3 {[%emt 0:00:06]} d5 {[%emt 0:00:05]} 8. dxe5 {[%emt 0:00:35]} Be6 {[%emt 0:00:04]} 9. Qe2 {[%emt 0:04:07]} Nc5 {[%emt 0:00:46]} 10. Rd1 {[%emt 0:00:56]} Nxb3 {[%emt 0:00:12]} 11. axb3 {[%emt 0:00:11]} Be7 {[%emt 0:00:05]} 12. Nc3 {[%emt 0:20:39]} O-O {[%emt 0:09:18]} 13. Bf4 {[%emt 0:00:32]} b4 {[%emt 0:28:43]} 14. Na4 {[%emt 0:09:52]} Qd7 {[%emt 0:11:20]} 15. Bg5 {[%emt 0:05:06]} Rfe8 {[%emt 0:03:30]} 16. Bxe7 {[%emt 0:05:00]} Qxe7 {[%emt 0:00:25]} 17. Qe3 {[%emt 0:00:56]} Rad8 {[%emt 0:08:01]} 18. Qc5 {[%emt 0:07:23]} Bg4 {[%emt 0:03:05]} 19. Qxc6 {[%emt 0:07:39]} Bxf3 {[%emt 0:00:06]} 20. gxf3 {[%emt 0:01:23]} Qg5+ {[%emt 0:01:06]} 21. Kh1 {[%emt 0:01:52]} Qf4 {[%emt 0:01:55]} 22. Rd3 {[%emt 0:08:17]} Rxe5 {[%emt 0:09:54]} 23. Rg1 {[%emt 0:00:54]} h5 {[%emt 0:06:04]} 24. Qxc7 {[%emt 0:02:31]} Rde8 {[%emt 0:00:15]} 25. Nb6 {[%emt 0:02:33]} Qf5 {[%emt 0:02:52]} 26. Qd7 {[%emt 0:02:12]} R8e6 {[%emt 0:00:40]} 27. Nxd5 {[%emt 0:02:00]} Kh7 {[%emt 0:01:21]} 28. Nc7 {[%emt 0:01:39]} 1-0

[Event "2nd Irena Warakomska Memorial-A"]
[Site "Suwalki"]
[Date "2018.08.07"]
[Round "8"]
[White "Aleksandrov, Aleksej"]
[Black "Matviishen, Viktor"]
[Result "1/2-1/2"]
[ECO "E24"]
[WhiteElo "2585"]
[BlackElo "2423"]
[Annotator "ChessBase"]
[PlyCount "80"]
[EventDate "2018.08.01"]
[EventType "swiss"]
[EventCountry "POL"]
[SourceTitle "playchess.com"]
[Source "ChessBase"]
[SourceQuality "1"]
[TimeControl "40/5400+30:1800+30"]

1. d4 {[%emt 0:00:00]} Nf6 {[%emt 0:00:00]} 2. c4 {[%emt 0:00:00]} e6 {[%emt 0:00:00]} 3. Nc3 {[%emt 0:00:00]} Bb4 {[%emt 0:00:00]} 4. a3 {[%emt 0:00:00]} Bxc3+ {[%emt 0:00:00]} 5. bxc3 {[%emt 0:00:00]} Ne4 {[%emt 0:00:25]} 6. Nh3 {[%emt 0:02:47]} c5 {[%emt 0:13:50]} 7. e3 {[%emt 0:08:10]} Qa5 {[%emt 0:02:42]} 8. Bb2 {[%emt 0:00:09]} cxd4 {[%emt 0:06:42]} 9. exd4 {[%emt 0:02:36]} O-O {[%emt 0:00:43]} 10. Bd3 {[%emt 0:04:16]} Nf6 {[%emt 0:00:01]} 11. O-O {[%emt 0:00:35]} b6 {[%emt 0:09:02]} 12. a4 {[%emt 0:18:34]} Nc6 {[%emt 0:05:47]} 13. Ba3 {[%emt 0:05:07]} Re8 {[%emt 0:07:15]} 14. Rb1 {[%emt 0:00:36]} Qh5 {[%emt 0:02:02]} 15. f3 {[%emt 0:11:20]} Ba6 {[%emt 0:02:26]} 16. Re1 {[%emt 0:06:05]} e5 {[%emt 0:06:37]} 17. Be2 {[%emt 0:00:59]} exd4 {[%emt 0:02:36]} 18. cxd4 {[%emt 0:02:35]} d5 {[%emt 0:05:51]} 19. c5 {[%emt 0:00:05]} Bxe2 {[%emt 0:01:28]} 20. Rxe2 {[%emt 0:00:11]} Rxe2 {[%emt 0:00:04]} 21. Qxe2 {[%emt 0:00:35]} Nxd4 {[%emt 0:03:58]} 22. Qd3 {[%emt 0:00:23]} bxc5 {[%emt 0:00:23]} 23. Bxc5 {[%emt 0:00:06]} Ne6 {[%emt 0:00:44]} 24. Be7 {[%emt 0:01:37]} Qg6 {[%emt 0:01:51]} 25. Qb5 {[%emt 0:05:25]} h6 {[%emt 0:01:06]} 26. Bxf6 {[%emt 0:00:39]} Qxf6 {[%emt 0:02:03]} 27. Qxd5 {[%emt 0:03:25]} Rd8 {[%emt 0:00:13]} 28. Qe4 {[%emt 0:01:36]} Nc5 {[%emt 0:00:44]} 29. Qc2 {[%emt 0:00:40]} Qd4+ {[%emt 0:02:04]} 30. Nf2 {[%emt 0:00:12]} Nxa4 {[%emt 0:03:52]} 31. Rd1 {[%emt 0:04:34]} Re8 {[%emt 0:00:03]} 32. g3 {[%emt 0:06:54]} Qb4 {[%emt 0:00:02]} 33. Nd3 {[%emt 0:05:05]} Qb5 {[%emt 0:05:01]} 34. Ra1 {[%emt 0:01:31]} Nb6 {[%emt 0:00:20]} 35. Rxa7 {[%emt 0:00:07]} Nc4 {[%emt 0:00:07]} 36. Ra1 {[%emt 0:01:10]} Qd5 {[%emt 0:00:53]} 37. Re1 {[%emt 0:01:57]} Rd8 {[%emt 0:03:27]} 38. Nf4 {[%emt 0:00:32]} Qd4+ {[%emt 0:00:52]} 39. Qf2 {[%emt 0:01:21]} Ne5 {[%emt 0:00:06]} 40. Kg2 {[%emt 0:00:00]} Qxf2+ {[%emt 0:00:00]} 1/2-1/2